bitfinex-derivatives/quotes_ETHF0:USTF0_20241207
["timestamp","ask_amount","ask_price","bid_price","bid_amount"]
[1733566558253,0.95608,3984.5,3984.4,0.17547]
[1733566558652,0.17548,3984.4,3984.3,0.17548]
[1733566558856,0.4087,3984.4,3984.3,0.17548]
[1733566562277,0.4087,3984.4,3984.3,0.25388556]
[1733566563653,0.58418,3984.4,3984.3,0.25388556]
[1733566563855,0.4087,3984.4,3984.3,0.25388556]
[1733566564253,0.58418,3984.4,3984.3,0.37933483]
[1733566564953,0.4087,3984.4,3984.3,0.37933483]
[1733566565347,0.7806,3984.5,3984.3,0.20385483]
[1733566565550,0.7806,3984.5,3984.2,0.90711551]
[1733566565551,0.7806,3984.5,3984.4,0.37933449]
[1733566565957,0.377,3984.5,3984.4,0.37933449]
[1733566566153,3.2078,3984.7,3984.6,0.17547]
[1733566566459,3.2078,3984.7,3984.6,1.28644]
[1733566566971,3.2078,3984.7,3984.6,42.08644]
[1733566567158,3.2078,3984.7,3984.6,42.16483811]
[1733566567551,3.2078,3984.7,3984.6,42.16483841]
[1733566567758,3.2078,3984.7,3984.6,42.08644]
[1733566568556,3.38327,3984.7,3984.6,41.91097]
[1733566568758,3.38327,3984.7,3984.6,42.08644]
[1733566569060,3.38327,3984.7,3984.6,41.83255425]
[1733566569171,0.17547,3984.6,3984.5,0.641]
[1733566569355,0.56077,3984.6,3984.5,1.02030849]
[1733566569657,0.56077,3984.6,3984.5,0.20383849]
[1733566570263,0.3853,3984.6,3984.0,40.8]
[1733566570561,0.1755,3983.9,3983.8,4.11491551]
[1733566570861,0.1755,3983.9,3983.2,0.64253]
[1733566570862,3.2078,3984.1,3983.2,3.4115]
[1733566571060,3.2078,3984.1,3983.7,0.17551]
[1733566571061,0.1755,3983.9,3983.7,0.17551]
[1733566571261,0.1755,3983.9,3983.8,0.1755]
[1733566571861,0.7935,3984.0,3983.8,0.1755]
[1733566572067,0.969,3984.0,3983.9,0.1755]
[1733566572260,0.1755,3983.8,3983.7,40.97551]
[1733566572462,0.1755,3983.8,3983.7,40.8]
[1733566573071,0.7935,3984.0,3983.7,40.97551]
[1733566573360,0.1755,3983.8,3983.7,40.8]
[1733566574970,0.1755,3983.8,3983.7,40.97551]
[1733566575173,0.969,3984.0,3983.8,0.1755]
[1733566575360,0.969,3984.0,3983.9,0.90711551]
[1733566577463,0.969,3984.0,3983.9,0.98553195]
[1733566577669,0.969,3984.0,3983.9,0.07841644]
[1733566578064,0.1755,3983.8,3983.7,40.8]
[1733566578264,0.7935,3984.0,3983.6,0.90711551]
[1733566578457,0.17551,3983.7,3983.6,0.90711551]
[1733566578659,0.17551,3983.7,3983.6,4.92560281]
[1733566579145,0.17551,3983.7,3983.6,4.84718164]
[1733566579272,0.17551,3983.7,3983.6,4.92560236]
[1733566579564,0.17551,3983.7,3983.6,4.92560256]
[1733566579972,0.17551,3983.7,3983.6,5.10111256]
[1733566580267,0.17551,3983.7,3983.6,4.92560256]
[1733566580467,0.17551,3983.7,3983.6,5.54625428]
[1733566581177,0.17551,3983.7,3983.6,5.54625359]
[1733566582365,0.17551,3983.7,3983.6,11.47182431]
[1733566582565,0.17551,3983.7,3983.6,11.39340408]
[1733566582866,0.17551,3983.7,3983.6,5.54625459]
[1733566583073,0.17551,3983.7,3983.6,11.47182531]
[1733566583463,0.7935,3984.0,3983.7,0.17551]
[1733566583771,0.17551,3983.7,3983.6,6.83268623]
[1733566583972,0.17551,3983.7,3983.6,11.4736211]
[1733566584666,0.17551,3983.7,3983.6,11.6491311]
[1733566584868,0.17551,3983.7,3983.6,11.4736211]
[1733566585075,0.17551,3983.7,3983.6,0.98553537]
[1733566585660,0.17551,3983.7,3983.6,0.07841986]
[1733566585870,0.4073,3983.9,3983.5,40.8]
[1733566585871,0.17551,3983.6,3983.5,40.8]
[1733566586068,0.17551,3983.6,3983.5,40.87842228]
[1733566586465,0.17551,3983.6,3983.5,40.87842103]
[1733566587066,0.17551,3983.6,3983.5,41.05394103]
[1733566588279,0.17551,3983.6,3983.5,0.07842103]
[1733566588877,0.17552,3983.4,3983.3,1.08263551]
[1733566589079,0.17552,3983.4,3983.3,1.16105716]
[1733566589471,0.17552,3983.4,3983.3,1.08263551]
[1733566589682,0.17552,3983.4,3983.3,0.25394172]
[1733566590066,0.17552,3983.4,3983.3,0.07842172]
[1733566590274,0.379,3983.5,3983.1,0.17553]
[1733566590275,0.17554,3983.2,3983.1,0.17553]
[1733566590475,0.17554,3983.0,3982.9,0.17554]
[1733566590676,0.17554,3983.0,3982.9,40.97554]
[1733566590872,0.17554,3983.0,3982.9,41.05397145]
[1733566591677,0.17554,3983.0,3982.9,0.25397145]
[1733566592474,0.17554,3983.0,3982.9,0.17554]
[1733566594285,0.17554,3983.1,3983.0,0.17554]
[1733566594584,0.17553,3983.2,3983.1,0.17553]
[1733566594884,0.17553,3983.2,3983.1,1.08264551]
[1733566595381,0.17553,3983.2,3983.1,41.70711551]
[1733566596777,0.17553,3983.2,3983.1,41.88265551]
[1733566597474,0.17553,3983.2,3983.1,0.90711551]
[1733566597684,0.17555,3982.9,3982.8,0.90711551]
[1733566598079,0.17555,3982.9,3982.8,41.70711551]
[1733566598381,0.17555,3982.9,3982.8,41.88266551]
[1733566598678,0.17555,3982.9,3982.8,40.97555]
[1733566598984,0.17555,3982.9,3982.8,40.8]
[1733566599189,0.17554,3983.1,3983.0,0.17554]
[1733566599482,0.17554,3983.0,3982.9,0.17554]
[1733566599713,0.55344,3983.0,3982.9,0.17554]
[1733566600482,0.55344,3983.0,3982.9,0.25397302]
[1733566600690,0.55344,3983.0,3982.9,0.07843302]
[1733566600985,0.55344,3983.0,3982.9,0.25397302]
[1733566602231,0.55344,3983.0,3982.9,0.17554]
[1733566602384,0.55344,3983.0,3982.9,0.25397437]
[1733566603224,0.55344,3983.0,3982.9,0.17554]
[1733566603384,0.55344,3983.0,3982.9,0.25397477]
[1733566605884,0.17554,3983.0,3982.9,0.25397477]
[1733566606588,0.17554,3983.0,3982.9,0.25397456]
[1733566607587,0.17555,3982.8,3982.7,41.88266551]
[1733566607781,0.17555,3982.8,3982.7,41.9611015]
[1733566609191,0.17555,3982.8,3982.7,1.1611015]
[1733566610287,0.57235,3982.9,3982.8,0.17555]
[1733566614297,0.57235,3982.9,3982.8,0.25398549]
[1733566614892,0.57235,3982.9,3982.8,0.33241979]
[1733566615191,0.57235,3982.9,3982.8,10.8300544]
[1733566615791,0.57235,3982.9,3982.8,10.6545044]
[1733566616386,0.57235,3982.9,3982.8,4.90448368]
[1733566616591,0.3968,3982.9,3982.8,4.90448368]
[1733566616790,0.57234,3982.9,3982.8,4.90448123]
[1733566616993,0.3968,3982.9,3982.8,4.90448123]
[1733566617186,3.6073,3983.2,3982.8,4.93273123]
[1733566617487,3.78283,3983.2,3983.1,3.94174546]
[1733566617690,3.78283,3983.2,3983.1,4.02017913]
[1733566618101,3.78283,3983.2,3983.1,4.02049943]
[1733566618495,3.78283,3983.2,3983.1,4.65333978]
[1733566618688,3.78283,3983.2,3983.1,4.77883044]
[1733566619688,3.78283,3983.2,3983.1,4.14652659]
[1733566619992,4.68994551,3983.2,3983.1,4.14652659]
[1733566622086,4.68994551,3983.2,3983.1,0.20392433]
[1733566622496,4.51441551,3983.2,3982.7,0.17555]
[1733566622688,0.17554,3982.9,3982.8,0.0784394]
[1733566622919,0.17555,3982.8,3982.7,0.17555]
[1733566623192,0.17555,3982.8,3982.7,0.30104945]
[1733566623493,0.17555,3982.8,3982.7,0.3794866]
[1733566624591,0.17555,3982.9,3982.8,0.17554]
[1733566624794,0.17555,3982.9,3982.8,0.3794766]
[1733566625896,0.17555,3982.9,3982.8,0.17554]
[1733566626197,2.94549654,3983.0,3982.8,0.20394158]
[1733566626496,0.17554,3983.0,3982.9,0.37947637]
[1733566626900,0.17554,3983.0,3982.9,0.20393637]
[1733566627398,3.12103654,3983.0,3982.9,0.25397907]
[1733566627799,3.12103654,3983.0,3982.9,0.07843907]
[1733566628894,0.17554,3982.9,3982.8,0.17555]
[1733566629096,0.17554,3982.9,3982.8,0.37948753]
[1733566629510,0.17554,3982.9,3982.8,0.37948758]
[1733566630098,0.17554,3982.9,3982.8,0.45792512]
[1733566630298,0.17554,3982.9,3982.8,12.92901901]
[1733566630697,0.17554,3982.9,3982.8,12.75406138]
[1733566631002,0.17554,3982.9,3982.8,12.92961138]
[1733566631196,0.17554,3982.9,3982.8,12.75406138]
[1733566631393,0.17554,3982.9,3982.8,12.75406177]
[1733566631590,1.08265551,3982.9,3982.8,4.86386113]
[1733566631794,1.08265551,3982.9,3982.8,4.78542359]
[1733566631999,1.08265551,3982.9,3982.8,10.70660563]
[1733566632603,1.08265551,3982.9,3982.8,4.78542359]
[1733566632903,1.08265551,3982.9,3982.8,4.78543202]
[1733566633896,0.17554,3982.9,3982.8,4.96098202]
[1733566634202,1.08265551,3982.9,3982.8,4.96098202]
[1733566635003,1.08265551,3982.9,3982.8,12.67563266]
[1733566635302,1.08265551,3982.9,3982.8,12.85118266]
[1733566635496,1.08265551,3982.9,3982.8,12.75406997]
[1733566635696,1.08265551,3982.9,3982.8,21.92237857]
[1733566635893,1.08265551,3982.9,3982.8,12.75406997]
[1733566636097,1.08265551,3982.9,3982.8,4.86386933]
[1733566636303,1.08265551,3982.9,3982.8,4.78543202]
[1733566637497,5.00327157,3982.9,3982.8,0.20394601]
[1733566637996,5.00327157,3982.9,3982.8,0.07844077]
[1733566639804,4.82773157,3982.9,3982.8,0.07844011]
[1733566640001,5.00328157,3982.9,3982.8,0.07844011]
[1733566641504,5.00328157,3982.9,3982.8,0.07844021]
[1733566642206,1.08266551,3982.9,3982.8,0.07844021]
[1733566643454,1.08266551,3982.9,3982.6,0.17556]
[1733566643455,0.17555,3982.7,3982.6,0.17556]
[1733566643609,0.17555,3982.7,3982.6,0.25400247]
[1733566644001,1.35485,3982.7,3982.6,0.25400247]
[1733566644304,1.35485,3982.7,3982.6,0.07844247]
[1733566645106,1.35485,3982.7,3982.6,0.28239386]
[1733566645305,5.28565913,3982.7,3982.6,0.20395104]
[1733566645505,1.1793,3982.7,3982.6,4.71259292]
[1733566645702,1.35485,3982.7,3982.6,10.63717871]
[1733566645903,1.35485,3982.7,3982.6,10.71562734]
[1733566646209,1.35485,3982.7,3982.6,10.59010953]
[1733566646504,1.35485,3982.7,3982.6,4.02771313]
[1733566646888,1.1793,3982.7,3982.6,3.94915465]
[1733566647010,1.35485,3982.7,3982.6,4.02760587]
[1733566647205,4.30290676,3982.7,3982.6,4.02760587]
[1733566647404,1.35485,3982.7,3982.6,4.02760587]
[1733566647906,1.35485,3982.7,3982.6,0.07845122]
[1733566648702,4.30290676,3982.7,3982.6,0.07845122]
[1733566649105,1.6182,3982.7,3982.3,3.94915465]
[1733566649301,3.2078,3982.4,3982.2,3.94915465]
[1733566649500,1.72468551,3982.3,3982.2,3.94915465]
[1733566649705,1.72468551,3982.3,3982.2,4.02761179]
[1733566650308,1.72468551,3982.3,3982.2,4.02761371]
[1733566650514,1.72468551,3982.3,3982.2,0.07845906]
[1733566652312,0.17558,3982.0,3981.9,3.94915465]
[1733566652608,0.17558,3982.0,3981.9,4.02761232]
[1733566653210,3.38338,3982.0,3981.9,4.02761232]
[1733566653512,4.29049551,3982.0,3981.9,0.07845767]
[1733566653718,4.29049551,3982.0,3981.8,3.94915465]
[1733566653719,0.17559,3981.9,3981.8,3.94915465]
[1733566653909,0.17559,3981.9,3981.8,4.02761723]
[1733566654107,0.17559,3981.9,3981.8,0.07846258]
[1733566654704,4.11491551,3982.0,3981.7,3.94915465]
[1733566654909,0.17559,3981.9,3981.8,0.07846124]
[1733566656314,3.38339,3981.9,3981.8,0.07846124]
[1733566659618,0.17561,3981.4,3981.3,4.34155465]
[1733566659816,1.08272551,3981.4,3981.3,4.15316844]
[1733566660116,0.90711551,3981.4,3981.1,3.94915465]
[1733566660333,0.4049,3981.3,3981.0,7.15695465]
[1733566660630,0.4049,3981.3,3981.0,3.94915465]
[1733566660631,1.08273551,3981.1,3981.0,3.94915465]
[1733566660918,1.08273551,3981.1,3980.9,0.17563]
[1733566660919,0.17563,3981.0,3980.9,0.17563]
[1733566661113,0.17563,3981.0,3980.9,0.25410176]
[1733566661816,0.17563,3981.0,3980.9,0.07847176]
[1733566662817,4.11491551,3981.1,3980.7,0.5961]
[1733566663019,1.08275551,3980.8,3980.7,0.3918]
[1733566663215,1.08275551,3980.8,3980.6,0.09773]
[1733566663216,0.90711551,3980.8,3980.6,0.09773]
[1733566663412,0.17564,3980.7,3980.6,0.09773]
[1733566663618,0.17564,3980.7,3980.6,0.17620853]
[1733566665013,0.58394,3980.7,3980.6,0.09773]
[1733566666621,3.79174,3980.7,3980.6,0.09773]
[1733566668026,3.79174,3980.7,3980.6,0.17621314]
[1733566669635,3.79174,3980.7,3980.6,0.35186314]
[1733566669930,3.2078,3980.7,3980.6,0.35186314]
[1733566670135,3.38344,3980.7,3980.6,41.15186314]
[1733566670436,3.38344,3980.7,3980.6,41.27743128]
[1733566671232,3.2078,3980.7,3980.6,41.27743128]
[1733566671527,3.38344,3980.7,3980.6,40.97621314]
[1733566671836,3.2078,3980.7,3980.6,41.27743054]
[1733566672040,3.38344,3980.7,3980.6,41.27743054]
[1733566672738,3.38344,3980.7,3980.6,0.30178054]
[1733566673739,3.38344,3980.7,3980.6,0.47743054]
[1733566674336,3.2078,3980.7,3980.6,0.47743054]
[1733566674837,3.38344,3980.7,3980.6,0.47743054]
[1733566675141,3.2078,3981.1,3981.0,0.17563]
[1733566675346,3.2078,3981.1,3981.0,0.37968054]
[1733566676546,3.38342,3981.1,3981.0,0.37968054]
[1733566677237,3.38342,3981.1,3981.0,0.37965037]
[1733566677444,0.17562,3981.1,3981.0,0.20402037]
[1733566677749,0.17562,3981.1,3981.0,0.37965037]
[1733566677949,0.17562,3981.1,3981.0,0.20402037]
[1733566678739,0.57112,3981.1,3981.0,0.20402037]
[1733566678943,1.47823551,3981.1,3981.0,0.20402037]
[1733566680654,1.47823551,3981.1,3981.0,0.20402457]
[1733566683147,0.17564,3980.7,3980.6,0.27338]
[1733566683341,0.17564,3980.7,3980.6,0.17620826]
[1733566684242,0.17564,3980.7,3980.6,0.09773]
[1733566687244,0.17564,3980.7,3980.6,0.17621333]
[1733566688545,0.17564,3980.7,3980.6,0.07848333]
[1733566690349,0.17564,3980.7,3980.6,0.20405748]
[1733566692247,0.17564,3980.7,3980.6,4.13437802]
[1733566693291,0.17564,3980.7,3980.6,4.13437735]
[1733566694451,0.17564,3980.7,3980.6,0.20405681]
[1733566696353,0.17564,3980.7,3980.6,4.13437735]
[1733566697051,0.17564,3980.7,3980.6,0.20405681]
[1733566697253,3.38344,3980.7,3980.6,4.13437735]
[1733566697649,3.38344,3980.7,3980.6,0.20405681]
[1733566698252,3.38344,3980.7,3979.9,3.93032054]
[1733566698253,3.2078,3980.7,3979.9,3.93032054]
[1733566698551,0.17565,3980.5,3980.4,0.17565]
[1733566698743,4.11491551,3980.7,3980.5,0.17565]
[1733566698744,0.17565,3980.6,3980.5,0.17565]
[1733566698950,0.17565,3980.6,3980.5,0.25413399]
[1733566700152,0.17565,3980.6,3980.5,0.07848399]
[1733566700544,0.17565,3980.6,3980.5,0.25413399]
[1733566701962,0.17565,3980.6,3980.5,0.07848399]
[1733566702459,0.17565,3980.5,3980.4,0.17565]
[1733566702654,0.17565,3980.5,3980.4,0.25413422]
[1733566703858,0.17565,3980.5,3980.4,0.2541344]
[1733566704858,0.17565,3980.5,3980.4,4.66745116]
[1733566705068,0.17565,3980.5,3980.4,4.84311116]
[1733566705363,0.17565,3980.5,3980.4,4.96868572]
[1733566705558,0.17565,3980.5,3980.4,4.79302572]
[1733566705756,0.17565,3980.5,3980.4,4.96868572]
[1733566706854,0.17565,3980.5,3980.4,4.97023283]
[1733566708954,4.67815551,3980.7,3980.6,0.17565]
[1733566709154,4.67815551,3980.7,3980.6,10.89287907]
[1733566709663,4.67815551,3980.7,3980.6,4.97022283]
[1733566710325,4.67815551,3980.7,3980.6,4.84464643]
[1733566710562,4.67815551,3980.7,3980.6,4.76616387]
[1733566710869,4.67815551,3980.7,3980.6,4.97021855]
[1733566712467,4.67815551,3980.7,3980.6,4.84464644]
[1733566713070,4.67815551,3980.7,3980.6,0.25413257]
[1733566713803,4.67815551,3980.7,3980.6,0.25413244]
[1733566714561,4.67815551,3980.7,3980.6,0.07848244]
[1733566714764,4.67815551,3980.7,3980.1,3.94847828]
[1733566714765,4.50251551,3980.7,3980.1,3.94847828]
[1733566715070,0.90711551,3980.3,3980.2,0.37972057]
[1733566715567,1.28501551,3980.3,3980.2,0.37972057]
[1733566718073,1.46067551,3980.3,3980.2,0.37972057]
[1733566718367,1.86527551,3980.3,3980.2,0.20406057]
[1733566718565,4.80893285,3980.3,3980.2,0.07848483]
[1733566719772,4.80893285,3980.3,3980.2,0.15697267]
[1733566719968,1.86527551,3980.3,3980.2,22.03236867]
[1733566720375,1.86527551,3980.3,3980.2,22.1579487]
[1733566720620,1.86527551,3980.3,3980.2,22.15795129]
[1733566722870,5.07307551,3980.3,3980.2,12.77593438]
[1733566723068,5.07307551,3980.3,3980.2,4.80724616]
[1733566723263,5.07307551,3980.3,3980.2,0.20406771]
[1733566723468,5.71507551,3980.3,3980.2,0.07848758]
[1733566727077,0.17567,3980.1,3980.0,3.94940892]
[1733566727280,1.08278551,3980.1,3980.0,3.94940892]
[1733566727471,1.08278551,3980.1,3980.0,4.02790932]
[1733566728675,0.17567,3980.0,3979.9,3.94940892]
[1733566728869,0.90711551,3980.0,3979.8,3.94940892]
[1733566729071,0.90711551,3980.0,3979.4,7.89020064]
[1733566729072,0.17569,3979.6,3979.5,3.94940892]
[1733566729269,0.17569,3979.5,3979.4,5.92364894]
[1733566729581,3.38349,3979.5,3979.4,10.65361663]
[1733566729973,3.38349,3979.5,3979.4,4.60435636]
[1733566730176,4.29060551,3979.5,3979.4,4.60435636]
[1733566730672,4.29060551,3979.5,3979.4,4.60307079]
[1733566731073,4.11491551,3979.5,3979.4,3.94555255]
[1733566731271,4.29060551,3979.5,3979.4,3.94555255]
[1733566731980,3.2078,3979.5,3979.4,3.94555255]
[1733566732179,4.11491551,3979.5,3979.4,4.12125255]
[1733566733374,4.29060551,3979.5,3979.4,3.94555255]
[1733566734079,0.1757,3979.4,3979.3,3.94555255]
[1733566735068,2.94365734,3979.4,3979.1,0.2826]
[1733566735378,3.11935734,3979.4,3979.3,0.1757]
[1733566736469,7.23426285,3979.5,3979.1,0.2826]
[1733566736771,7.23426285,3979.5,3979.4,0.1757]
[1733566736977,7.05857285,3979.5,3979.1,0.2826]
[1733566737176,0.1757,3979.4,3979.3,0.1757]
[1733566737372,7.05857285,3979.5,3979.4,0.18546477]
[1733566737373,7.23427285,3979.5,3979.4,0.18546477]
[1733566738180,7.23427285,3979.5,3979.4,0.00976477]
[1733566742475,7.05857285,3979.5,3979.4,0.26397022]
[1733566742679,4.29060551,3979.5,3979.4,0.26397022]
[1733566743193,4.29060551,3979.5,3979.4,0.26396916]
[1733566743884,4.69600551,3979.5,3979.4,0.26396916]
[1733566745287,4.69600551,3979.5,3979.4,0.38957638]
[1733566745680,4.69600551,3979.5,3979.4,0.21387638]
[1733566745883,4.69600551,3979.5,3979.4,0.08826916]
[1733566746484,4.69600551,3979.5,3979.4,0.38957523]
[1733566746791,3.2078,3979.5,3979.4,4.33512778]
[1733566747381,3.2078,3979.5,3979.4,0.38957523]
[1733566748080,3.2078,3979.5,3979.4,5.06998474]
[1733566748485,1.47920551,3979.7,3979.6,0.17569]
[1733566748790,1.30351551,3979.7,3979.6,0.37980046]
[1733566749279,1.30351551,3979.7,3979.6,0.45918812]
[1733566749790,3.2078,3979.9,3979.8,0.17568]
[1733566749986,3.2078,3979.9,3979.8,4.32192773]
[1733566750185,3.2078,3979.9,3979.8,0.37977922]
[1733566750692,3.2078,3979.9,3979.8,0.07850021]
[1733566750988,3.2078,3979.9,3979.8,0.17568]
[1733566751291,3.2078,3979.9,3979.8,0.25417549]
[1733566751478,0.7648,3980.3,3979.8,0.07849549]
[1733566751479,4.87971551,3980.3,3979.8,0.07849549]
[1733566751685,4.87971551,3980.3,3980.2,0.17566]
[1733566752789,4.87971551,3980.3,3980.0,0.2823]
[1733566752790,4.87971551,3980.3,3980.1,0.17567]
[1733566753391,4.87971551,3980.3,3980.2,0.17566]
[1733566754195,4.87971551,3980.3,3980.0,0.2823]
[1733566754391,0.17567,3980.2,3980.0,0.45797]
[1733566754596,4.87971551,3980.3,3980.0,0.45797]
[1733566754790,5.05537551,3980.3,3980.0,0.45797]
[1733566755092,4.87971551,3980.3,3980.1,0.17567]
[1733566755287,4.49311551,3980.3,3980.1,0.17567]
[1733566755993,4.66877551,3980.3,3980.1,0.17567]
[1733566756595,4.49311551,3980.3,3980.0,0.2823]
[1733566756796,4.49311551,3980.3,3980.1,0.17567]
[1733566757296,4.66877551,3980.3,3980.1,0.17567]
[1733566757596,4.66877551,3980.3,3980.2,0.07849298]
[1733566758991,0.17566,3980.2,3980.1,3.94127697]
[1733566759195,0.17566,3980.2,3980.1,4.14535732]
[1733566759790,0.17566,3980.2,3980.1,0.07849244]
[1733566759987,0.17566,3980.2,3980.1,4.01976941]
[1733566760191,0.17566,3980.2,3980.1,0.07849244]
[1733566761691,0.17566,3980.2,3980.1,4.88789137]
[1733566761897,0.17566,3980.2,3980.1,10.81154031]
[1733566762103,0.17566,3980.2,3980.1,10.73224562]
[1733566762299,0.17566,3980.2,3980.1,4.60451502]
[1733566762932,0.17566,3980.2,3980.1,4.80859415]
[1733566763101,0.17566,3980.2,3980.1,4.80866374]
[1733566763497,0.17566,3980.2,3980.1,4.88795092]
[1733566763818,0.17566,3980.2,3980.1,4.60458461]
[1733566763898,0.17566,3980.2,3980.1,4.8879439]
[1733566764607,0.17566,3980.2,3980.1,10.80399988]
[1733566766696,0.17566,3980.2,3980.1,4.8879439]
[1733566767009,0.17566,3980.2,3980.1,4.14816435]
[1733566767201,0.17566,3980.2,3980.1,0.20407877]
[1733566767399,0.17566,3980.2,3980.1,4.14829652]
[1733566767606,0.17566,3980.2,3980.1,0.20407877]
[1733566767807,0.17566,3980.2,3980.1,4.89033073]
[1733566768104,0.17566,3980.2,3980.1,4.14825445]
[1733566768902,0.17566,3980.2,3980.1,4.02266751]
[1733566769111,0.17566,3980.2,3980.1,0.07849183]
[1733566771418,4.49311551,3980.3,3980.0,3.94417568]
[1733566771605,0.17566,3980.2,3980.1,0.07849591]
[1733566772116,0.17566,3980.2,3980.1,0.20408937]
[1733566773008,4.49311551,3980.3,3980.0,3.94417568]
[1733566773205,2.94365734,3980.2,3979.4,0.00976477]
[1733566773411,0.17569,3979.6,3979.5,0.45941675]
[1733566773605,0.17569,3979.6,3979.5,0.20408793]
[1733566774707,0.17569,3979.6,3979.4,0.18546477]
[1733566774909,3.2078,3979.9,3979.5,1.28689701]
[1733566775104,3.2078,3979.9,3979.6,0.17569]
[1733566775105,0.17569,3979.7,3979.6,0.17569]
[1733566775304,0.17569,3979.7,3979.6,0.25418616]
[1733566775505,0.17569,3979.7,3979.6,0.07849616]
[1733566775713,0.17569,3979.7,3979.6,0.15699309]
[1733566776110,0.17569,3979.7,3979.6,0.28258884]
[1733566776416,0.17569,3979.7,3979.6,0.20409268]
[1733566778420,0.17569,3979.7,3979.6,0.20409189]
[1733566780323,0.17569,3979.7,3979.6,12.704506]
[1733566780819,0.17569,3979.7,3979.6,12.91183889]
[1733566781769,0.17569,3979.7,3979.6,12.91183946]
[1733566781915,0.17569,3979.7,3979.6,13.08752946]
[1733566782613,0.17569,3979.7,3979.6,12.91183946]
[1733566783316,0.17569,3979.7,3979.6,22.31072023]
[1733566783919,0.17569,3979.7,3979.6,22.13503023]
[1733566784627,0.17569,3979.7,3979.6,14.24482959]
[1733566785018,0.17569,3979.7,3979.6,13.83340424]
[1733566785319,0.17569,3979.7,3979.6,14.24282692]
[1733566787716,0.17569,3979.7,3979.6,14.29214238]
[1733566787917,0.17569,3979.7,3979.6,14.57474238]
[1733566788223,0.3787,3979.8,3979.7,0.17569]
[1733566788524,0.3787,3979.8,3979.7,0.37978049]
[1733566789320,0.3787,3979.8,3979.7,4.48592214]
[1733566789631,3.11932734,3980.0,3979.7,4.31023214]
[1733566789823,2.94365734,3980.0,3979.9,0.17568]
[1733566790023,6.32712734,3980.1,3980.0,0.17567]
[1733566790226,6.32712734,3980.1,3980.0,0.37976049]
[1733566790227,3.38347,3980.1,3980.0,0.37976049]
[1733566790432,6.1503669,3980.1,3980.0,0.37976049]
[1733566790838,6.15070407,3980.1,3980.0,0.37976049]
[1733566791221,6.15070407,3980.1,3980.0,0.25416634]
[1733566791422,2.94290407,3980.3,3980.0,10.82527657]
[1733566791632,2.94290407,3980.5,3980.4,0.17565]
[1733566791841,2.94290407,3980.5,3980.4,0.37971309]
[1733566792028,6.15070407,3980.6,3980.5,0.17565]
[1733566792226,6.15165687,3980.6,3980.5,0.2541358]
[1733566792622,6.15165687,3980.6,3980.5,0.37971038]
[1733566793029,3.2078,3980.6,3980.5,0.37971038]
[1733566793728,3.2078,3980.6,3980.5,0.20406038]
[1733566794034,3.38345,3980.6,3980.5,0.20406038]
[1733566794925,3.38345,3980.6,3980.5,0.2851849]
[1733566795240,3.38345,3980.6,3980.4,4.12577274]
[1733566795345,3.38345,3980.6,3980.5,5.06930281]
[1733566795630,3.38345,3980.6,3980.5,5.19485862]
[1733566795835,3.2078,3980.6,3980.5,5.19485862]
[1733566796730,3.38345,3980.6,3980.5,6.47716116]
[1733566796927,3.38345,3980.6,3980.5,6.3960628]
[1733566797234,3.38345,3980.6,3980.5,5.7383628]
[1733566797426,3.38345,3980.6,3980.5,4.83124729]
[1733566797832,3.38345,3980.6,3980.5,10.75416652]
[1733566799737,3.38345,3980.6,3980.5,4.83124729]
[1733566800233,3.38345,3980.6,3980.5,10.75416652]
[1733566801276,3.38345,3980.6,3980.5,10.75285664]
[1733566803337,7.13275053,3980.6,3980.2,0.90711551]
[1733566803533,0.17566,3980.3,3980.2,0.90711551]
[1733566803735,0.17566,3980.3,3980.2,0.98560053]
[1733566803929,0.17566,3980.3,3980.2,1.16126053]
[1733566804125,3.11793515,3980.3,3980.2,1.16126053]
[1733566804329,2.94227515,3980.4,3980.2,1.16126053]
[1733566804528,3.11793515,3980.4,3980.3,0.07848502]
[1733566804930,3.11793515,3980.4,3980.3,40.87848502]
[1733566805736,3.11793515,3980.4,3980.3,0.07848502]
[1733566806442,0.17566,3980.4,3980.3,0.07848502]
[1733566806831,3.11896635,3980.4,3980.3,0.07848502]
[1733566807040,0.17566,3980.3,3980.2,0.90711551]
[1733566807243,3.11896534,3980.3,3980.2,41.78560115]
[1733566808043,3.11896534,3980.3,3980.2,0.07848564]
[1733566809238,0.17566,3980.3,3980.2,0.07848564]
[1733566810040,0.17566,3980.3,3980.2,0.16316524]
[1733566810231,0.17566,3980.3,3980.2,0.29869482]
[1733566810441,0.17566,3980.3,3980.2,14.30309316]
[1733566810641,0.17566,3980.3,3980.2,14.30309525]
[1733566810839,0.17566,3980.3,3980.2,18.7937174]
[1733566811040,0.17566,3980.3,3980.2,14.30297943]
[1733566811242,0.17566,3980.3,3980.2,14.30299704]
[1733566814745,0.17566,3980.3,3980.2,14.30299648]
[1733566815747,0.17566,3980.3,3980.2,12.80835683]
[1733566816045,0.17566,3980.3,3980.2,12.80785362]
[1733566816550,0.17566,3980.3,3980.2,4.91448058]
[1733566816842,0.17566,3980.3,3980.2,9.58444519]
[1733566817041,0.17565,3980.4,3980.2,3.94724719]
[1733566817246,0.17566,3980.2,3980.1,3.94724719]
[1733566818347,0.17567,3980.1,3980.0,3.94724719]
[1733566818943,0.17567,3980.0,3979.9,3.94724719]
[1733566820048,0.8248,3980.1,3979.7,3.94724719]
[1733566820247,3.38348,3979.8,3979.7,3.94724719]
[1733566822452,0.17569,3979.7,3979.6,3.94724719]
[1733566823247,0.17569,3979.6,3979.5,3.94724719]
[1733566823446,1.28441551,3979.6,3979.4,3.9465674]
[1733566823750,1.28441551,3979.6,3979.3,3.9465674]
[1733566823751,0.4038,3979.5,3979.3,3.9465674]
[1733566823947,3.3835,3979.4,3979.3,3.9465674]
[1733566825458,3.2078,3979.4,3979.0,0.90711551]
[1733566825678,0.1757,3979.3,3979.2,0.4075]
[1733566825885,0.5522,3979.3,3979.2,0.4075]
[1733566826055,0.5522,3979.3,3979.2,41.2075]
[1733566827455,0.5522,3979.3,3979.2,40.8]
[1733566828961,0.5522,3979.3,3979.2,0.07850977]
[1733566829159,0.3765,3979.3,3979.0,0.90711551]
[1733566829367,0.17571,3979.1,3979.0,41.70711551]
[1733566829661,0.17571,3979.1,3979.0,41.78562523]
[1733566829858,0.17571,3979.1,3979.0,41.78562534]
[1733566831560,0.17571,3979.1,3979.0,0.98562534]